bitfinex/quotes_ETHUSD_20240707
["timestamp","ask_amount","ask_price","bid_price","bid_amount"]
[1720352346351,0.06918302,3020.4,3020.3,2.31765]
[1720352346539,0.34026165,3020.9,3020.3,2.31765]
[1720352346540,1.55536601,3020.9,3020.3,2.31765]
[1720352346758,0.06920572,3020.4,3020.3,2.31765]
[1720352346923,1.55534996,3020.9,3020.3,2.31765]
[1720352347277,1.25508828,3020.8,3020.5,2.31743]
[1720352347430,1.25508828,3020.7,3020.6,4.57261]
[1720352347765,0.17728024,3020.7,3020.6,4.57261]
[1720352349738,0.06891548,3020.7,3020.6,4.57261]
[1720352349938,0.10835683,3020.7,3020.4,2.3175]
[1720352350139,0.10835683,3020.6,3020.4,2.3175]
[1720352350375,0.10835683,3020.6,3020.3,2.2552]
[1720352350376,0.17744707,3020.6,3020.3,2.2552]
[1720352350575,0.17744707,3020.6,3020.2,2.31767]
[1720352350576,0.06909024,3020.6,3020.2,2.31767]
[1720352350752,1.25512121,3020.5,3020.2,2.31767]
[1720352350956,0.10836978,3020.4,3020.2,2.31767]
[1720352351187,0.17743544,3020.4,3020.2,2.31767]
[1720352351480,0.06906566,3020.4,3020.2,2.31767]
[1720352351651,3.34026165,3020.9,3020.2,2.31767]
[1720352351853,1.32432132,3020.8,3020.2,2.31767]
[1720352352075,1.25510181,3020.7,3020.0,2.31787]
[1720352352255,1.25510181,3020.6,3020.0,5.31787]
[1720352352563,1.32423999,3020.5,3020.0,5.31787]
[1720352352739,1.25510181,3020.4,3020.0,5.31787]
[1720352352935,0.06913829,3020.4,3020.0,5.31787]
[1720352353139,0.10837198,3020.3,3020.0,5.31787]
[1720352353351,0.10837198,3020.2,3020.0,5.31787]
[1720352353552,0.17745604,3020.2,3020.0,5.31787]
[1720352353867,0.06908406,3020.2,3020.0,5.31787]
[1720352354165,7.41,3020.7,3020.0,5.31787]
[1720352354373,0.06905694,3020.1,3020.0,5.31787]
[1720352354547,7.41,3020.7,3020.0,5.31787]
[1720352354754,0.06902161,3020.1,3020.0,5.31787]
[1720352354944,7.41,3020.7,3020.0,5.31787]
[1720352355565,1.32437754,3020.6,3020.0,5.31787]
[1720352355865,2.2734,3020.4,3019.9,2.31792]
[1720352356076,1.25520493,3020.3,3019.9,2.31792]
[1720352356236,1.25520493,3020.2,3019.8,3.0]
[1720352356568,0.17739895,3020.1,3019.8,5.31802]
[1720352356737,0.10838359,3020.0,3019.8,5.31802]
[1720352356937,0.17742872,3020.0,3019.8,5.31802]
[1720352357169,0.06904513,3020.0,3019.8,5.31802]
[1720352357373,0.06904513,3020.0,3019.9,2.31795]
[1720352357571,3.0,3020.5,3019.9,2.31795]
[1720352357739,0.06904513,3020.0,3019.9,2.31795]
[1720352357935,3.0,3020.5,3019.9,2.31795]
[1720352358165,0.06906939,3020.0,3019.9,2.31795]
[1720352358670,3.0,3020.5,3019.9,2.31795]
[1720352358842,0.06906939,3020.0,3019.9,2.31795]
[1720352359042,3.0,3020.5,3019.9,2.31795]
[1720352359261,1.32445107,3020.4,3019.9,2.31795]
[1720352359439,1.25528865,3020.3,3019.9,2.31795]
[1720352359639,0.17749081,3020.2,3019.9,2.31795]
[1720352359882,0.06910819,3020.2,3019.9,2.31795]
[1720352360043,3.0,3020.5,3019.9,2.31795]
[1720352360243,1.32443256,3020.4,3019.9,2.31795]
[1720352360438,1.25527014,3020.3,3019.9,2.31795]
[1720352360665,0.17753549,3020.2,3019.9,2.31795]
[1720352360865,0.06915447,3020.2,3019.9,2.31795]
[1720352361068,4.500082,3020.5,3019.9,2.31795]
[1720352361379,0.06908108,3020.1,3019.9,2.31795]
[1720352361675,0.06910024,3020.0,3019.9,2.31795]
[1720352361978,3.0,3020.5,3019.9,2.31795]
[1720352362166,0.06910024,3020.0,3019.9,2.31795]
[1720352362359,3.0,3020.5,3019.9,2.31795]
[1720352362684,2.01435223,3020.4,3019.9,2.31795]
[1720352362881,1.25527023,3020.3,3019.9,2.31795]
[1720352363068,0.10838102,3020.2,3019.9,2.31795]
[1720352363373,0.17748921,3020.2,3019.9,2.31795]
[1720352363571,0.06910819,3020.2,3019.9,2.31795]
[1720352363955,3.0,3020.5,3019.9,2.31795]
[1720352364158,0.06908108,3020.1,3019.9,2.31795]
[1720352364360,3.0,3020.5,3019.8,3.0]
[1720352364667,5.252,3020.1,3019.2,2.31843]
[1720352364872,3.0,3019.6,3019.0,2.31858]
[1720352365180,0.10837175,3019.5,3019.1,2.3185]
[1720352365361,0.06864069,3019.5,3019.2,2.31849]
[1720352369385,0.06864069,3019.5,3019.0,2.31858]
[1720352370384,0.06864069,3019.5,3018.8,2.3491]
[1720352370586,0.53206407,3019.4,3018.7,5.31886]
[1720352370975,0.06818718,3019.3,3018.7,5.31886]
[1720352374012,3.0,3019.2,3018.6,2.3491]
[1720352374216,2.3374,3019.1,3018.4,2.3191]
[1720352374388,2.40550383,3019.1,3018.4,2.3191]
[1720352374594,0.54055038,3019.0,3018.4,2.3191]
[1720352374806,2.40550383,3019.1,3018.4,2.3191]
[1720352375005,0.06794082,3018.9,3018.5,2.31902]
[1720352375203,0.06796796,3019.0,3018.5,2.31902]
[1720352375392,0.06791367,3018.8,3018.3,6.95266]
[1720352375596,0.06794082,3018.9,3018.3,6.95266]
[1720352375795,0.06786827,3018.7,3018.4,2.31909]
[1720352375992,0.06789542,3018.8,3018.4,2.31909]
[1720352376197,0.06784112,3018.6,3018.4,2.31909]
[1720352376396,10.08816731,3019.1,3018.4,2.31909]
[1720352376594,0.06781398,3018.5,3018.4,2.31909]
[1720352376817,10.08816731,3019.1,3018.4,2.31909]
[1720352376985,0.06781398,3018.5,3018.4,2.31909]
[1720352377186,10.08816731,3019.1,3018.4,2.31909]
[1720352377822,0.0679497,3019.0,3018.4,2.31909]
[1720352378612,0.0679497,3019.0,3018.6,2.3144]
[1720352380122,0.0679497,3019.0,3018.6,4.63335]
[1720352380283,3.0,3019.2,3018.6,4.63335]
[1720352380484,0.06801061,3019.1,3018.6,4.63335]
[1720352384230,0.06801061,3019.1,3018.7,2.31886]
[1720352385221,0.06801061,3019.1,3018.9,0.2]
[1720352389207,0.06801061,3019.1,3018.9,0.4]
[1720352394272,1.14736432,3019.0,3018.9,0.4]
[1720352394760,1.21285202,3019.0,3018.9,0.4]
[1720352394961,0.0654877,3019.0,3018.9,0.4]
[1720352395141,3.0,3019.2,3018.9,0.4]
[1720352395343,0.0654877,3019.0,3018.9,0.4]
[1720352395545,1.14736155,3019.0,3018.9,0.4]
[1720352395728,0.0654877,3019.0,3018.9,0.4]
[1720352395932,1.21284925,3019.0,3018.9,0.4]
[1720352396440,1.21285062,3019.0,3018.9,0.4]
[1720352400080,0.0654877,3019.0,3018.9,0.4]
[1720352400587,1.21285599,3019.0,3018.9,0.4]
[1720352402340,1.21287653,3019.0,3018.9,2.71872]
[1720352402891,1.21287653,3019.0,3018.9,0.4]
[1720352403883,1.21293642,3019.0,3018.9,0.4]
[1720352404584,1.21294101,3019.0,3018.9,0.4]
[1720352405487,0.06551102,3019.0,3018.9,0.4]
[1720352405691,1.2128971,3019.0,3018.9,0.4]
[1720352405888,1.14738608,3019.0,3018.9,0.4]
[1720352406099,1.21291535,3019.0,3018.9,0.4]
[1720352409405,0.17384966,3019.0,3018.9,0.4]
[1720352409904,1.32121429,3019.0,3018.9,0.4]
[1720352410500,1.32121844,3019.0,3018.9,0.4]
[1720352412111,4.11464028,3019.0,3018.9,0.4]
[1720352412403,5.22123552,3019.0,3018.9,0.4]
[1720352412965,7.53987552,3019.0,3018.9,0.4]
[1720352414372,7.88604276,3019.0,3018.9,0.4]
[1720352415587,9.05729835,3019.0,3018.9,0.4]
[1720352415814,10.20488525,3019.0,3018.9,0.4]
[1720352417080,7.88624525,3019.0,3018.9,0.4]
[1720352417962,5.52494525,3019.0,3018.9,0.4]
[1720352418180,2.77418341,3019.0,3018.9,0.4]
[1720352418773,1.62659566,3019.0,3018.9,0.4]
[1720352419119,1.66750295,3019.0,3018.9,0.4]
[1720352419414,2.77408496,3019.0,3018.9,0.4]
[1720352419570,3.0,3018.8,3018.5,2.4875]
[1720352419772,1.31847834,3018.7,3018.5,2.4875]
[1720352419970,1.25582775,3018.6,3018.5,2.4875]
[1720352420270,1.31846249,3018.6,3018.5,2.4875]
[1720352422273,1.31849082,3018.6,3018.5,2.4875]
[1720352423973,1.31849082,3018.6,3018.5,2.968163]
[1720352424183,0.1709819,3018.6,3018.5,5.287193]
[1720352424986,0.1709819,3018.6,3018.5,2.968163]
[1720352425189,0.1709819,3018.6,3018.5,2.4875]
[1720352425616,0.17098583,3018.6,3018.5,2.4875]
[1720352426314,0.17098583,3018.6,3018.5,4.80653]
[1720352427784,0.06263308,3018.6,3018.5,7.12556]
[1720352427988,0.34613908,3019.1,3018.9,0.2]
[1720352428321,1.3184868,3019.0,3018.9,2.6091]
[1720352428823,0.06273897,3019.0,3018.9,2.6091]
[1720352429027,0.17110518,3019.0,3018.9,5.420615]
[1720352429233,0.17111119,3019.0,3018.9,5.420615]
[1720352429442,0.06273897,3019.0,3018.9,5.420615]
[1720352429931,2.63,3019.2,3019.0,2.31864]
[1720352430235,0.10837117,3019.1,3019.0,2.31864]
[1720352432095,0.10837147,3019.1,3019.0,2.31864]
[1720352435380,2.63,3019.2,3019.0,2.31864]
[1720352435499,0.10837467,3019.1,3019.0,2.31864]
[1720352435794,0.20774239,3019.1,3019.0,2.31864]
[1720352436831,0.20774239,3019.1,3018.9,2.8091]
[1720352437130,0.10837467,3019.0,3018.9,2.8091]
[1720352437333,0.10837467,3019.0,3018.9,5.12782]
[1720352437532,0.09934178,3019.0,3018.9,5.12782]
[1720352437693,0.20770732,3019.0,3018.9,5.12782]
[1720352437897,0.10836554,3019.0,3018.9,5.12782]
[1720352438099,0.20770732,3019.0,3018.9,5.12782]
[1720352438732,0.09934178,3019.0,3018.9,5.12782]
[1720352439157,2.63,3019.2,3019.0,2.31863]
[1720352439435,0.10836829,3019.1,3019.0,2.31863]
[1720352440225,2.23836829,3019.2,3019.0,2.31863]
[1720352440905,2.23836829,3019.2,3018.9,2.8091]
[1720352441130,1.14732959,3019.1,3018.9,5.12781]
[1720352441332,5.23836829,3019.2,3018.9,0.4]
[1720352441639,1.37120677,3019.1,3018.9,0.4]
[1720352441948,0.22383683,3019.1,3018.9,0.4]
[1720352442106,1.14742477,3019.0,3018.9,0.4]
[1720352445147,1.14750687,3019.0,3018.9,0.4]
[1720352445331,4.42673313,3019.0,3018.9,0.4]
[1720352445930,6.74537313,3019.0,3018.9,0.4]
[1720352446138,7.8240859,3019.0,3018.9,0.4]
[1720352447223,10.1427259,3019.0,3018.9,0.4]
[1720352448442,10.14288979,3019.0,3018.9,0.4]
[1720352448640,10.69288979,3019.0,3018.9,0.4]
[1720352448947,10.69290881,3019.0,3018.9,0.4]
[1720352449716,9.61415152,3019.0,3018.9,0.4]
[1720352449916,10.69290385,3019.0,3018.9,0.4]
[1720352450563,13.69290385,3019.0,3018.9,0.4]
[1720352450769,13.79228947,3019.0,3018.9,0.4]
[1720352451675,11.56589188,3019.0,3018.9,0.4]
[1720352451844,13.7922107,3019.0,3018.9,0.4]
[1720352453363,6.2531307,3019.0,3018.9,0.4]
[1720352453550,4.24698938,3019.0,3018.9,0.4]
[1720352453866,6.56562938,3019.0,3018.9,0.4]
[1720352454043,4.24698938,3019.0,3018.9,0.4]
[1720352455055,4.24690381,3019.0,3018.9,0.4]
[1720352455244,10.01331374,3019.0,3018.9,0.4]
[1720352455554,12.12442201,3019.0,3018.9,0.4]
[1720352455866,9.75472201,3019.0,3018.9,0.4]
[1720352456959,8.67665208,3019.0,3018.9,0.4]
[1720352457162,9.75496537,3019.0,3018.9,0.4]
[1720352457564,8.67665208,3019.0,3018.9,0.4]
[1720352457735,9.75502489,3019.0,3018.9,0.4]
[1720352457937,8.67665208,3019.0,3018.9,0.4]
[1720352458147,7.52913389,3019.0,3018.9,0.4]
[1720352458476,9.75505781,3019.0,3018.9,0.4]
[1720352458638,8.60752226,3019.0,3018.9,0.4]
[1720352458839,9.75506097,3019.0,3018.9,0.4]
[1720352459570,9.75505012,3019.0,3018.9,0.4]
[1720352459774,8.67667267,3019.0,3018.9,0.4]
[1720352459954,6.35803267,3019.0,3018.9,0.4]
[1720352460362,4.2469244,3019.0,3018.9,0.4]
[1720352460884,3.09938562,3019.0,3018.9,0.4]
[1720352461043,1.24683903,3019.0,3018.9,0.4]
[1720352461237,4.24683903,3019.0,3018.9,0.4]
[1720352462548,1.24683903,3019.0,3018.9,0.4]
[1720352462779,4.24683903,3019.0,3018.9,0.4]
[1720352463470,1.24683903,3019.0,3018.9,0.4]
[1720352463671,2.16180583,3019.0,3018.9,0.4]
[1720352464185,2.16184846,3019.0,3018.9,0.4]
[1720352465470,1.24688166,3019.0,3018.9,0.4]
[1720352466379,3.0,3018.8,3018.6,2.2535]
[1720352466566,1.14749604,3018.7,3018.6,2.2535]
[1720352466883,1.24601631,3018.7,3018.6,2.2535]
[1720352467386,0.09852027,3018.7,3018.6,2.2535]
[1720352467579,1.24600817,3018.7,3018.6,2.2535]
[1720352467764,1.67060899,3018.7,3018.1,4.57279]
[1720352467970,1.1474879,3018.6,3018.1,4.57279]
[1720352468363,0.09819252,3018.5,3018.1,4.57279]
[1720352468578,1.1474879,3018.4,3018.2,2.31924]
[1720352468976,0.09808511,3018.3,3018.2,2.31924]
[1720352469358,1.24572299,3018.3,3018.1,2.2535]
[1720352469557,0.34597088,3018.7,3018.1,2.2535]
[1720352469776,0.09805916,3018.2,3018.1,2.2535]
[1720352470267,0.34597088,3018.7,3018.1,2.2535]
[1720352470469,1.24577222,3018.6,3018.1,2.2535]
[1720352470803,1.14761399,3018.5,3018.1,4.57277]
[1720352471089,0.09812583,3018.4,3018.2,2.31926]
[1720352471688,0.09808511,3018.3,3018.2,2.31926]
[1720352472059,0.34597088,3018.7,3018.2,2.31926]
[1720352472291,1.24575899,3018.6,3018.2,2.31926]
[1720352472458,1.14759604,3018.5,3018.1,2.2535]
[1720352472660,1.2457071,3018.4,3018.1,2.2535]
[1720352472860,1.14759604,3018.3,3018.1,2.2535]
[1720352473076,0.0980411,3018.2,3018.1,2.2535]
[1720352473499,0.34597088,3018.7,3018.1,2.2535]
[1720352473716,0.0980411,3018.2,3018.1,2.2535]
[1720352473907,0.34597088,3018.7,3018.1,2.2535]
[1720352474111,0.09472848,3018.2,3018.1,2.2535]
[1720352474323,0.34597088,3018.7,3018.1,2.2535]
[1720352474520,0.09476923,3018.2,3018.1,2.2535]
[1720352474705,0.34597088,3018.7,3018.1,2.2535]
[1720352474910,0.09472848,3018.2,3018.1,2.2535]
[1720352475091,0.34597088,3018.7,3018.1,2.2535]
[1720352475422,0.09472848,3018.2,3018.1,4.57283]
[1720352475574,0.34597088,3018.7,3018.2,4.59853]
[1720352475920,1.14754238,3018.6,3018.2,4.59853]
[1720352476104,1.14754238,3018.5,3018.2,4.59853]
[1720352476306,1.14754238,3018.4,3018.2,4.59853]
[1720352476617,10.41,3018.8,3018.2,4.59853]
[1720352476919,1.14756926,3018.7,3018.2,4.59853]
[1720352477213,1.14756926,3018.6,3018.2,4.59853]
[1720352477420,10.41,3018.8,3018.2,4.59853]
[1720352477632,1.14757224,3018.7,3018.2,4.59853]
[1720352480619,0.09485424,3018.6,3018.2,4.59853]
[1720352480830,1.14757499,3018.5,3018.2,4.59853]
[1720352481139,1.24240333,3018.4,3018.2,6.91773]
[1720352481416,0.09482834,3018.4,3018.2,4.5985]
[1720352481739,0.09482834,3018.4,3018.2,6.91771]
[1720352481916,10.75598759,3018.8,3018.2,6.91771]
[1720352482221,1.14755816,3018.7,3018.2,6.91771]
[1720352482423,1.24241997,3018.6,3018.2,6.91771]
[1720352482718,1.14755816,3018.5,3018.2,6.91771]
[1720352483392,10.75598759,3018.8,3018.3,2.2793]
[1720352483393,1.24234562,3018.4,3018.3,2.2793]
[1720352484078,0.09479769,3018.4,3018.3,2.31918]
[1720352484284,10.41,3018.8,3018.4,2.31905]
[1720352484513,10.41,3018.8,3018.5,2.2793]
[1720352484713,1.24235852,3018.7,3018.5,2.2793]
[1720352484918,1.14748807,3018.6,3018.5,2.2793]
[1720352485206,1.24231782,3018.6,3018.5,2.2793]
[1720352485411,1.24231782,3018.6,3018.5,4.59833]
[1720352485612,1.24232357,3018.6,3018.5,4.59833]
[1720352487314,0.09482975,3018.6,3018.5,4.59833]
[1720352487519,1.24233053,3018.6,3018.5,4.59833]
[1720352487684,1.14750078,3018.6,3018.5,4.59833]
[1720352487882,1.24232239,3018.6,3018.5,4.59833]
[1720352490809,1.24232844,3018.6,3018.5,4.59833]
[1720352492421,0.09482161,3018.6,3018.5,4.59833]
[1720352492744,1.14749784,3018.7,3018.5,4.59833]
[1720352492935,1.2423422,3018.6,3018.5,4.59833]
[1720352493447,1.2423422,3018.6,3018.5,2.2793]
[1720352493750,1.2423422,3018.6,3018.3,2.783018]
[1720352493751,1.24239901,3018.6,3018.3,4.59848]
[1720352493921,1.14755465,3018.5,3018.3,4.59848]
[1720352494264,1.24235921,3018.4,3018.3,4.59848]
[1720352495145,1.24235921,3018.4,3018.3,2.2793]
[1720352496342,1.24235921,3018.4,3018.0,2.4117]
[1720352496546,1.14756672,3018.3,3018.0,2.4117]
[1720352496945,0.09474833,3018.2,3018.0,2.4117]
[1720352497262,3.0,3018.3,3017.7,2.4304534]
[1720352497470,1.14776853,3018.1,3017.7,2.4304534]
[1720352497622,1.24233215,3018.0,3017.7,2.4304534]
[1720352497823,1.14778165,3017.9,3017.7,2.4304534]
[1720352498059,1.24229336,3017.8,3017.7,2.4304534]
[1720352498273,0.09451171,3017.8,3017.7,2.4304534]
[1720352498434,1.0783222,3018.2,3017.7,2.4304534]
[1720352498633,1.2423046,3018.1,3017.7,2.4304534]
[1720352498833,1.14777485,3018.0,3017.7,2.4304534]
[1720352499058,0.09447785,3017.9,3017.7,2.4304534]
[1720352499453,2.19349689,3018.2,3017.7,2.4304534]
[1720352499660,1.24232182,3018.1,3017.7,2.4304534]
[1720352499961,1.14779207,3018.0,3017.7,0.0187534]
[1720352500123,1.14779207,3017.9,3017.7,0.0187534]
[1720352500325,0.09447785,3017.9,3017.7,0.0187534]
[1720352500953,2.19350175,3018.2,3017.7,0.0187534]
[1720352501197,0.09438872,3017.8,3017.7,0.0187534]
[1720352501400,5.31919,3018.3,3017.7,0.0187534]
[1720352501706,1.14779119,3018.2,3017.7,0.0187534]
[1720352501996,1.14779119,3018.1,3017.7,0.0187534]
[1720352502354,0.09125111,3018.0,3017.7,0.0187534]
[1720352502558,1.14779119,3017.9,3017.7,0.0187534]
[1720352502756,0.09125111,3018.0,3017.7,0.0187534]
[1720352503005,0.09119162,3017.8,3017.7,0.0187534]
[1720352503223,6.326484,3018.3,3017.7,0.0187534]
[1720352503224,2.31938,3018.1,3017.7,0.0187534]
[1720352503359,0.09123246,3017.8,3017.7,0.0187534]
[1720352503680,1.23900155,3017.8,3017.7,0.0187534]
[1720352503889,2.4107286,3017.8,3017.7,0.0187534]
[1720352504058,3.55858127,3017.8,3017.7,0.0187534]
[1720352505250,1.23901127,3017.8,3017.7,0.0187534]
[1720352505447,1.03713163,3017.8,3017.7,0.0187534]
[1720352506553,0.0911586,3017.8,3017.7,0.0187534]
[1720352511471,1.23909929,3017.8,3017.7,0.0187534]
[1720352511660,0.0911586,3017.8,3017.7,0.0187534]
[1720352515591,2.4107286,3017.8,3017.7,0.0187534]
[1720352515770,3.55867126,3017.8,3017.7,0.0187534]
[1720352515971,4.72116759,3017.8,3017.7,0.0187534]
[1720352517190,7.72129747,3017.8,3017.7,0.0187534]
[1720352518560,7.72127265,3017.8,3017.7,0.0187534]
[1720352520365,6.57322493,3017.8,3017.7,0.0187534]
[1720352520566,7.72122345,3017.8,3017.7,0.0187534]
[1720352520790,6.57322493,3017.8,3017.7,0.0187534]
[1720352520990,7.72121812,3017.8,3017.7,0.0187534]
[1720352521186,5.40164812,3017.8,3017.7,0.0187534]
[1720352521713,4.25365493,3017.8,3017.7,0.0187534]
[1720352521865,5.40163677,3017.8,3017.7,0.0187534]
[1720352522483,7.72120677,3017.8,3017.7,0.0187534]
[1720352523003,6.57322493,3017.8,3017.7,0.0187534]
[1720352523207,7.72122567,3017.8,3017.7,0.0187534]
[1720352523766,6.57322493,3017.8,3017.7,0.0187534]
[1720352524013,5.40165599,3017.8,3017.7,0.0187534]
[1720352524371,5.40165146,3017.8,3017.7,0.0187534]
[1720352525403,5.40165146,3017.8,3017.7,0.2187534]
[1720352526301,4.25365493,3017.8,3017.7,0.2187534]
[1720352526482,5.40163241,3017.8,3017.7,0.2187534]
[1720352526678,7.72120241,3017.8,3017.7,0.2187534]
[1720352526885,10.12210241,3017.8,3017.7,0.2187534]
[1720352529497,8.97412493,3017.8,3017.7,0.4187534]
[1720352529793,12.44176589,3017.8,3017.7,0.4187534]
[1720352530016,11.29369493,3017.8,3017.7,0.4187534]
[1720352530217,12.44175281,3017.8,3017.7,0.4187534]
[1720352530720,13.86380746,3017.8,3017.7,0.4187534]
[1720352530887,12.99181006,3017.8,3017.7,0.4187534]
[1720352532999,11.84369493,3017.8,3017.7,0.4187534]
[1720352533200,12.99178811,3017.8,3017.7,0.4187534]
[1720352536130,14.07014822,3017.8,3017.7,0.4187534]
[1720352536302,16.06314822,3017.8,3017.7,0.4187534]
[1720352536508,16.06320021,3017.8,3017.7,0.4187534]
[1720352537028,14.98483405,3017.8,3017.7,0.4187534]
[1720352537216,16.06320227,3017.8,3017.7,0.4187534]
[1720352537728,12.58393405,3017.8,3017.7,0.4187534]
[1720352538109,13.66228533,3017.8,3017.7,0.4187534]
[1720352538298,13.66228565,3017.8,3017.7,0.4187534]
[1720352539137,13.66228938,3017.8,3017.7,0.4187534]
[1720352539606,11.43579493,3017.8,3017.7,0.4187534]
[1720352539812,13.66224093,3017.8,3017.7,0.4187534]
[1720352540121,12.51412828,3017.8,3017.7,0.4187534]
[1720352540323,13.66225195,3017.8,3017.7,0.4187534]
[1720352541318,13.66219239,3017.8,3017.7,0.4187534]
[1720352543010,11.43579493,3017.8,3017.7,0.4187534]
[1720352543226,13.66208589,3017.8,3017.7,0.4187534]
[1720352544923,14.10811756,3017.8,3017.7,0.4187534]
[1720352546036,17.60211756,3017.8,3017.7,0.4187534]
[1720352546240,19.88271756,3017.8,3017.7,0.4187534]
[1720352546439,19.88272082,3017.8,3017.7,0.4187534]
[1720352547341,22.6283138,3017.8,3017.7,0.4187534]
[1720352547727,3.0,3017.0,3016.9,2.2685]
[1720352547929,4.2334354,3017.0,3016.9,2.2685]
[1720352548129,5.31147148,3017.0,3016.9,2.2685]
[1720352548343,4.2334354,3017.0,3016.9,2.2685]
[1720352548642,4.57896945,3017.0,3016.9,2.2685]
[1720352549541,3.43082139,3017.0,3016.9,2.2685]
[1720352549733,4.57910345,3017.0,3016.9,2.2685]
[1720352549934,3.43082139,3017.0,3016.9,2.2685]
[1720352550122,4.57908747,3017.0,3016.9,2.2685]
[1720352551029,5.65711175,3017.0,3016.9,2.2685]
[1720352551235,5.65711175,3017.0,3016.3,2.2685]
[1720352551236,3.0,3016.5,3016.3,2.2685]
[1720352551740,0.0850918,3016.4,3016.3,2.2685]
[1720352556358,0.0850918,3016.4,3016.3,2.2185]
[1720352559980,0.0850918,3016.4,3016.3,2.4185]
[1720352560424,0.0850918,3016.4,3016.3,2.3685]
[1720352562218,0.0850918,3016.4,3016.3,4.68922]
[1720352562459,0.0850918,3016.4,3016.3,5.31699264]
[1720352563022,0.0850918,3016.4,3016.3,2.52072]
[1720352563635,0.0850918,3016.4,3016.3,4.96852]
[1720352563836,0.0850918,3016.4,3016.3,5.16852]
[1720352564457,0.0850918,3016.4,3016.3,7.48924]
[1720352564858,10.41,3016.9,3016.7,4.71821]
[1720352565241,1.14821525,3016.8,3016.7,4.71821]
[1720352565452,1.14820475,3016.8,3016.7,4.71821]
[1720352565771,10.41,3016.9,3016.7,4.71821]
[1720352565938,1.14821144,3016.8,3016.7,4.71821]
[1720352566363,10.41,3016.9,3016.7,4.71821]
[1720352566364,10.41,3016.9,3016.7,2.3978]
[1720352566666,1.14821997,3016.8,3016.7,2.3978]
[1720352569840,1.14824528,3016.8,3016.7,2.3978]
[1720352570585,1.23335296,3016.8,3016.7,2.3978]
[1720352573295,1.23334372,3016.8,3016.7,2.3978]
[1720352576540,1.23338223,3016.8,3016.7,2.3978]
[1720352576991,1.23337808,3016.8,3016.7,2.3978]
[1720352577896,0.08510768,3016.8,3016.7,2.3978]
[1720352578081,1.23333776,3016.8,3016.7,2.3978]
[1720352579806,0.08510768,3016.8,3016.7,2.3978]
[1720352580017,1.23333261,3016.8,3016.7,2.3978]
[1720352582263,0.08510768,3016.8,3016.7,2.3978]
[1720352582469,1.23330859,3016.8,3016.7,2.3978]
[1720352584794,0.08510768,3016.8,3016.7,2.3978]
[1720352585175,1.23331872,3016.8,3016.7,2.3978]
[1720352585801,0.08510768,3016.8,3016.7,2.3978]
[1720352587473,1.23329916,3016.8,3016.7,2.3978]
[1720352589518,0.08510768,3016.8,3016.7,2.3978]
[1720352591999,0.08510768,3016.8,3016.4,2.4315]
[1720352592883,0.08510768,3016.8,3016.4,4.75214]
[1720352593084,0.42817192,3016.8,3016.4,2.4315]
[1720352595702,0.42817192,3016.8,3016.3,1.0]
[1720352596295,4.67792,3016.7,3016.3,1.0]
[1720352596474,3.0,3016.4,3016.3,1.0]
[1720352596977,3.08473403,3016.4,3016.3,1.0]
[1720352597401,3.62525743,3016.4,3016.3,1.0]
[1720352598599,3.08473403,3016.4,3016.3,1.0]
[1720352599528,4.23312718,3016.4,3016.3,1.0]
[1720352600178,4.23311626,3016.4,3016.3,1.0]
[1720352603515,3.08473403,3016.4,3016.3,1.0]
[1720352603692,4.23310874,3016.4,3016.3,1.0]
[1720352603891,3.08473403,3016.4,3016.3,1.0]
[1720352604092,4.23310961,3016.4,3016.3,3.3981]
[1720352604287,4.23310961,3016.4,3016.3,5.71882]
[1720352606196,4.23310961,3016.4,3016.3,4.71882]
[1720352606379,4.23310961,3016.4,3016.3,4.91882]
[1720352610398,3.08473403,3016.4,3016.3,5.11882]
[1720352610727,4.23308693,3016.4,3016.3,5.11882]
[1720352613730,4.23308982,3016.4,3016.3,5.11882]
[1720352613949,3.08473403,3016.4,3016.3,5.11882]
[1720352614242,4.54156318,3016.4,3016.3,0.4]
[1720352614561,4.54156318,3016.4,3016.3,0.6]
[1720352617029,4.54161364,3016.4,3016.3,0.6]
[1720352618835,4.54161364,3016.4,3016.3,0.8]
[1720352620334,3.39320743,3016.4,3016.3,0.8]
[1720352620638,4.54161526,3016.4,3016.3,0.8]
[1720352622103,4.23314186,3016.4,3016.3,3.2032]
[1720352622709,4.23314186,3016.4,3016.3,3.4032]
[1720352623742,4.23309951,3016.4,3016.3,3.4032]
[1720352624155,4.23310126,3016.4,3016.3,3.4032]
[1720352624776,1.23310126,3016.4,3016.3,5.72392]
[1720352624921,0.08473403,3016.4,3016.3,10.937752]
[1720352625125,7.41,3016.8,3016.7,7.06892]
[1720352629957,9.64836829,3017.2,3016.8,2.3203]
[1720352630298,1.14811763,3017.1,3016.8,2.3203]
[1720352630498,1.37964859,3017.1,3016.8,2.3203]
[1720352630786,0.08108223,3017.0,3016.8,2.3203]
[1720352632090,0.08108223,3017.0,3016.9,2.32026]
[1720352632667,9.64836829,3017.2,3016.9,2.32026]
[1720352632989,0.0810873,3017.0,3016.9,2.32026]
[1720352633384,9.64836829,3017.2,3016.9,2.32026]
[1720352633698,0.08129542,3017.1,3016.9,2.32026]
[1720352633862,0.08129542,3017.1,3017.0,7.06846]
[1720352635680,0.08129542,3017.1,3017.0,4.74828]
[1720352636672,0.08129542,3017.1,3016.7,2.3204]
[1720352636884,0.08129542,3017.1,3016.5,4.76949]
[1720352637206,0.08129542,3017.1,3016.6,2.32046]
[1720352637405,0.85028179,3017.1,3016.7,2.3204]
[1720352637610,0.85028179,3017.1,3016.6,2.32046]
[1720352637812,0.85028179,3017.1,3016.6,2.32044]
[1720352638184,0.85028179,3017.1,3016.7,2.32034]
[1720352638430,0.08129542,3017.1,3016.7,2.32034]
[1720352641010,0.08129542,3017.1,3016.8,2.32029]
[1720352641420,0.08129542,3017.1,3016.6,2.32042]
[1720352641621,0.08129542,3017.1,3016.7,2.32039]
[1720352642181,0.08129542,3017.1,3016.6,2.32042]
[1720352642182,0.08129542,3017.1,3016.8,2.32031]
[1720352643324,0.61326179,3017.1,3016.6,2.32042]
[1720352643734,1.14821261,3017.0,3016.4,2.3206]
[1720352643915,3.0,3016.7,3016.4,2.3206]